[Event "FIDE Online Semi Final 2020"]
[Site "Online"]
[Date "2020.08.29"]
[Round "1.2"]
[White "Socko, Monika"]
[Black "Koneru, Humpy"]
[Result "0-1"]
[ECO "E04"]
[WhiteElo "2335"]
[BlackElo "2454"]
[Annotator "ChessBase"]
[PlyCount "82"]
[EventDate "2020.08.28"]
[EventType "k.o."]
[SourceTitle "playchess.com"]
[Source "ChessBase"]
[SourceQuality "1"]
[TimeControl "900+5"]

1. d4 {[%emt 0:00:01]} Nf6 {[%emt 0:00:03]} 2. c4 {[%emt 0:00:01]} e6 {[%emt 0:00:01]} 3. Nf3 {[%emt 0:00:02]} d5 {[%emt 0:00:05]} 4. g3 {[%emt 0:00:02]} dxc4 {[%emt 0:00:06]} 5. Bg2 {[%emt 0:00:06]} Bb4+ {[%emt 0:00:09]} 6. Nbd2 {[%emt 0:00:07]} b5 {[%emt 0:00:42]} 7. a4 {[%emt 0:00:44]} c6 {[%emt 0:00:30]} 8. O-O {[%emt 0:00:12]} a5 {[%emt 0:02:12]} 9. e4 {[%emt 0:03:05]} Bxd2 {[%emt 0:02:28]} 10. Bxd2 {[%emt 0:00:04]} Nxe4 {[%emt 0:01:35]} 11. axb5 {[%emt 0:00:08]} cxb5 {[%emt 0:02:32]} 12. Ng5 {[%emt 0:00:50]} Nxd2 {[%emt 0:00:59]} 13. Qxd2 {[%emt 0:00:02]} Ra7 {[%emt 0:01:08]} 14. d5 {[%emt 0:00:19]} O-O {[%emt 0:00:15]} 15. Qe3 {[%emt 0:01:45]} Ra6 {[%emt 0:01:41]} 16. Rfd1 {[%emt 0:01:02]} Rd6 {[%emt 0:00:31]} 17. Qc5 {[%emt 0:01:07]} Na6 {[%emt 0:00:11]} 18. Qe3 {[%emt 0:00:07]} exd5 {[%emt 0:00:20]} 19. Rd4 {[%emt 0:00:05]} Re8 {[%emt 0:00:14]} 20. Qd2 {[%emt 0:00:05]} Nb4 {[%emt 0:00:16]} 21. h4 {[%emt 0:00:50]} Bf5 {[%emt 0:00:09]} 22. Qf4 {[%emt 0:00:11]} Rf6 {[%emt 0:00:16]} 23. Qd2 {[%emt 0:00:27]} Bd3 {[%emt 0:00:06]} 24. Rf4 {[%emt 0:01:00]} h6 {[%emt 0:00:04]} 25. Nh3 {[%emt 0:00:08]} Re2 {[%emt 0:00:09]} 26. Qc1 {[%emt 0:00:15]} Nc2 {[%emt 0:00:09]} 27. Rxf6 {[%emt 0:00:01]} Qxf6 {[%emt 0:00:01]} 28. Rxa5 {[%emt 0:00:09]} Re1+ {[%emt 0:00:02]} 29. Qxe1 {[%emt 0:00:01]} Nxe1 {[%emt 0:00:00]} 30. Bxd5 {[%emt 0:00:05]} Bf5 {[%emt 0:00:09]} 31. Nf4 {[%emt 0:00:06]} Nd3 {[%emt 0:00:05]} 32. Nh5 {[%emt 0:00:17]} Qb6 {[%emt 0:00:07]} 33. Ra8+ {[%emt 0:00:03]} Kh7 {[%emt 0:00:01]} 34. Kh1 {[%emt 0:00:34]} Qxf2 {[%emt 0:00:03]} 35. Rf8 {[%emt 0:00:10]} Qe1+ {[%emt 0:00:04]} 36. Kg2 {[%emt 0:00:03]} Qe2+ {[%emt 0:00:05]} 37. Kg1 {[%emt 0:00:05]} Qxh5 {[%emt 0:00:05]} 38. Bxf7 {[%emt 0:00:01]} Qd1+ {[%emt 0:00:02]} 39. Kg2 {[%emt 0:00:04]} Qe2+ {[%emt 0:00:04]} 40. Kg1 {[%emt 0:00:01]} Qf2+ {[%emt 0:00:01]} 41. Kh1 {[%emt 0:00:01]} Be4# {[%emt 0:00:00]} 0-1

[Event "FIDE Online Semi Final 2020"]
[Site "Online"]
[Date "2020.08.29"]
[Round "1.2"]
[White "Vantika, Agrawal"]
[Black "Sliwicka, Alicja"]
[Result "*"]
[ECO "A43"]
[WhiteElo "2141"]
[BlackElo "2176"]
[Annotator "ChessBase"]
[PlyCount "64"]
[EventDate "2020.08.28"]
[EventType "k.o."]
[SourceTitle "playchess.com"]
[Source "ChessBase"]
[SourceQuality "1"]
[TimeControl "900+5"]

1. d4 {[%emt 0:00:04]} Nf6 {[%emt 0:00:02]} 2. Nf3 {[%emt 0:00:04]} c5 {[%emt 0:00:02]} 3. d5 {[%emt 0:00:04]} b5 {[%emt 0:00:02]} 4. Bg5 {[%emt 0:00:06]} d6 {[%emt 0:00:05]} 5. Bxf6 {[%emt 0:01:11]} exf6 {[%emt 0:00:05]} 6. e4 {[%emt 0:00:06]} a6 {[%emt 0:00:02]} 7. a4 {[%emt 0:00:01]} b4 {[%emt 0:00:02]} 8. Bd3 {[%emt 0:01:15]} a5 {[%emt 0:00:10]} 9. Nbd2 {[%emt 0:00:14]} g6 {[%emt 0:00:03]} 10. O-O {[%emt 0:00:26]} Bg7 {[%emt 0:00:06]} 11. Bb5+ {[%emt 0:00:33]} Bd7 {[%emt 0:00:11]} 12. Nc4 {[%emt 0:00:42]} Qc7 {[%emt 0:00:27]} 13. Nfd2 {[%emt 0:01:41]} O-O {[%emt 0:00:13]} 14. Bxd7 {[%emt 0:00:50]} Nxd7 {[%emt 0:00:06]} 15. f4 {[%emt 0:00:06]} Ra6 {[%emt 0:01:44]} 16. Qg4 {[%emt 0:00:57]} Qc8 {[%emt 0:01:38]} 17. Qh4 {[%emt 0:01:33]} Re8 {[%emt 0:02:40]} 18. f5 {[%emt 0:01:07]} Qd8 {[%emt 0:00:33]} 19. Rae1 {[%emt 0:00:41]} Qe7 {[%emt 0:00:22]} 20. Rf3 {[%emt 0:01:03]} Ne5 {[%emt 0:00:40]} 21. Rh3 {[%emt 0:00:10]} h6 {[%emt 0:00:02]} 22. Ne3 {[%emt 0:00:20]} Raa8 {[%emt 0:00:47]} 23. b3 {[%emt 0:00:05]} Rac8 {[%emt 0:01:02]} 24. Rf1 {[%emt 0:01:00]} g5 {[%emt 0:01:14]} 25. Qh5 {[%emt 0:00:18]} Kh7 {[%emt 0:00:09]} 26. Rg3 {[%emt 0:00:06]} Rh8 {[%emt 0:00:27]} 27. h4 {[%emt 0:00:16]} Kg8 {[%emt 0:00:18]} 28. Re1 {[%emt 0:00:09]} Kf8 {[%emt 0:00:07]} 29. Ndc4 {[%emt 0:00:23]} Ke8 {[%emt 0:00:20]} 30. Nxa5 {[%emt 0:00:28]} Kd8 {[%emt 0:00:56]} 31. Nac4 {[%emt 0:00:13]} Kc7 {[%emt 0:00:35]} 32. Qe2 {[%emt 0:00:27]} h5 {[%emt 0:00:15]} *

[Event "FIDE Online Semi Final 2020"]
[Site "Online"]
[Date "2020.08.30"]
[Round "2.1"]
[White "Esipenko, Andrey"]
[Black "Xiong, Jeffery"]
[Result "1/2-1/2"]
[ECO "D41"]
[WhiteElo "2832"]
[BlackElo "2724"]
[Annotator "ChessBase"]
[PlyCount "84"]
[EventDate "2020.08.28"]
[EventType "k.o."]
[SourceTitle "playchess.com"]
[Source "ChessBase"]
[SourceQuality "1"]
[TimeControl "900+5"]

1. c4 {[%emt 0:00:02]} c5 {[%emt 0:00:04]} 2. Nf3 {[%emt 0:00:02]} Nf6 {[%emt 0:00:01]} 3. Nc3 {[%emt 0:00:05]} d5 {[%emt 0:00:01]} 4. cxd5 {[%emt 0:00:09]} Nxd5 {[%emt 0:00:00]} 5. e3 {[%emt 0:00:01]} Nc6 {[%emt 0:00:01]} 6. Bb5 {[%emt 0:00:29]} Nxc3 {[%emt 0:00:02]} 7. bxc3 {[%emt 0:00:15]} Bd7 {[%emt 0:00:01]} 8. O-O {[%emt 0:00:08]} e6 {[%emt 0:00:02]} 9. d4 {[%emt 0:00:24]} Be7 {[%emt 0:00:01]} 10. Qe2 {[%emt 0:00:08]} O-O {[%emt 0:00:03]} 11. Bd2 {[%emt 0:00:26]} Qc7 {[%emt 0:01:18]} 12. e4 {[%emt 0:01:09]} Rad8 {[%emt 0:03:51]} 13. Rfd1 {[%emt 0:03:02]} Na5 {[%emt 0:00:45]} 14. Bd3 {[%emt 0:00:34]} f6 {[%emt 0:00:46]} 15. Be3 {[%emt 0:00:36]} b6 {[%emt 0:00:55]} 16. h3 {[%emt 0:00:21]} Kh8 {[%emt 0:00:34]} 17. Rac1 {[%emt 0:00:56]} e5 {[%emt 0:00:24]} 18. Bb5 {[%emt 0:00:49]} Bc8 {[%emt 0:00:38]} 19. Nh4 {[%emt 0:00:10]} g6 {[%emt 0:02:11]} 20. Nf3 {[%emt 0:00:28]} Be6 {[%emt 0:00:22]} 21. Bh6 {[%emt 0:00:48]} Rg8 {[%emt 0:00:07]} 22. dxe5 {[%emt 0:00:41]} g5 {[%emt 0:01:41]} 23. exf6 {[%emt 0:00:23]} Bxf6 {[%emt 0:00:00]} 24. e5 {[%emt 0:00:17]} Be7 {[%emt 0:00:02]} 25. Qe3 {[%emt 0:01:16]} Rg6 {[%emt 0:01:09]} 26. Bxg5 {[%emt 0:01:10]} Rdg8 {[%emt 0:00:01]} 27. h4 {[%emt 0:00:04]} h6 {[%emt 0:00:01]} 28. Bxe7 {[%emt 0:00:21]} Qxe7 {[%emt 0:00:54]} 29. Kf1 {[%emt 0:00:26]} Nc4 {[%emt 0:00:02]} 30. Bxc4 {[%emt 0:01:12]} Bxc4+ {[%emt 0:00:02]} 31. Ke1 {[%emt 0:00:00]} Rxg2 {[%emt 0:00:48]} 32. Qxh6+ {[%emt 0:00:05]} Qh7 {[%emt 0:00:00]} 33. Qxh7+ {[%emt 0:00:14]} Kxh7 {[%emt 0:00:01]} 34. Rd6 {[%emt 0:00:09]} R8g4 {[%emt 0:00:31]} 35. Rc2 {[%emt 0:00:17]} Kg7 {[%emt 0:00:00]} 36. Rd7+ {[%emt 0:00:06]} Kf8 {[%emt 0:00:06]} 37. Rxa7 {[%emt 0:00:04]} Rf4 {[%emt 0:00:02]} 38. Rd2 {[%emt 0:00:11]} Ke8 {[%emt 0:00:10]} 39. Ra8+ {[%emt 0:00:02]} Ke7 {[%emt 0:00:00]} 40. Ra7+ {[%emt 0:00:01]} Ke8 {[%emt 0:00:01]} 41. Ra8+ {[%emt 0:00:01]} Ke7 {[%emt 0:00:00]} 42. Ra7+ {[%emt 0:00:15]} Ke8 {[%emt 0:00:15]} 1/2-1/2

[Event "FIDE Online Semi Final 2020"]
[Site "Online"]
[Date "2020.08.30"]
[Round "2.1"]
[White "Shankland, Sam"]
[Black "Dubov, Daniil"]
[Result "1/2-1/2"]
[ECO "C11"]
[WhiteElo "2764"]
[BlackElo "2840"]
[Annotator "ChessBase"]
[PlyCount "125"]
[EventDate "2020.08.28"]
[EventType "k.o."]
[SourceTitle "playchess.com"]
[Source "ChessBase"]
[SourceQuality "1"]
[TimeControl "900+5"]

1. e4 {[%emt 0:00:01]} e6 {[%emt 0:00:06]} 2. d4 {[%emt 0:00:04]} d5 {[%emt 0:00:01]} 3. Nc3 {[%emt 0:00:00]} Nf6 {[%emt 0:00:02]} 4. e5 {[%emt 0:00:02]} Nfd7 {[%emt 0:00:01]} 5. f4 {[%emt 0:00:00]} c5 {[%emt 0:00:01]} 6. Nf3 {[%emt 0:00:01]} Nc6 {[%emt 0:00:01]} 7. Be3 {[%emt 0:00:01]} cxd4 {[%emt 0:00:02]} 8. Nxd4 {[%emt 0:00:02]} Bb4 {[%emt 0:00:06]} 9. a3 {[%emt 0:01:29]} Bxc3+ {[%emt 0:00:03]} 10. bxc3 {[%emt 0:00:00]} Ne7 {[%emt 0:00:02]} 11. Bd3 {[%emt 0:00:05]} Nc5 {[%emt 0:00:06]} 12. O-O {[%emt 0:00:05]} Nxd3 {[%emt 0:00:10]} 13. cxd3 {[%emt 0:00:11]} O-O {[%emt 0:00:04]} 14. a4 {[%emt 0:00:09]} Bd7 {[%emt 0:00:15]} 15. Qb3 {[%emt 0:00:07]} b6 {[%emt 0:00:20]} 16. Qa3 {[%emt 0:00:42]} Rc8 {[%emt 0:00:22]} 17. Rfc1 {[%emt 0:00:46]} Ng6 {[%emt 0:01:11]} 18. a5 {[%emt 0:00:48]} Qc7 {[%emt 0:01:25]} 19. axb6 {[%emt 0:00:29]} axb6 {[%emt 0:00:05]} 20. Qa7 {[%emt 0:00:07]} f6 {[%emt 0:02:13]} 21. f5 {[%emt 0:02:25]} fxe5 {[%emt 0:02:07]} 22. fxg6 {[%emt 0:01:21]} exd4 {[%emt 0:00:04]} 23. gxh7+ {[%emt 0:00:01]} Kxh7 {[%emt 0:00:06]} 24. Bxd4 {[%emt 0:00:01]} Bb5 {[%emt 0:00:55]} 25. Rd1 {[%emt 0:02:26]} Rfe8 {[%emt 0:02:20]} 26. Qxc7 {[%emt 0:00:41]} Rxc7 {[%emt 0:00:01]} 27. Rab1 {[%emt 0:00:01]} Ba4 {[%emt 0:01:53]} 28. Re1 {[%emt 0:00:03]} Bc2 {[%emt 0:00:45]} 29. Rxb6 {[%emt 0:00:03]} Bxd3 {[%emt 0:00:33]} 30. Rbxe6 {[%emt 0:00:04]} Rxe6 {[%emt 0:00:01]} 31. Rxe6 {[%emt 0:00:00]} Be4 {[%emt 0:00:46]} 32. Kf2 {[%emt 0:00:58]} Rb7 {[%emt 0:00:18]} 33. g4 {[%emt 0:00:31]} Kg8 {[%emt 0:00:51]} 34. Kg3 {[%emt 0:00:14]} Kf7 {[%emt 0:00:04]} 35. Rc6 {[%emt 0:00:13]} g6 {[%emt 0:00:12]} 36. h4 {[%emt 0:00:07]} Rb1 {[%emt 0:00:06]} 37. Kf4 {[%emt 0:00:06]} Rh1 {[%emt 0:00:12]} 38. Kg5 {[%emt 0:00:02]} Rh2 {[%emt 0:00:02]} 39. Rc7+ {[%emt 0:00:39]} Ke6 {[%emt 0:00:02]} 40. Bc5 {[%emt 0:00:04]} d4 {[%emt 0:00:08]} 41. Re7+ {[%emt 0:00:07]} Kd5 {[%emt 0:00:02]} 42. Bxd4 {[%emt 0:00:00]} Bd3 {[%emt 0:00:04]} 43. Re5+ {[%emt 0:00:07]} Kc4 {[%emt 0:00:03]} 44. Re3 {[%emt 0:00:03]} Rg2 {[%emt 0:00:03]} 45. Kf4 {[%emt 0:00:12]} Rh2 {[%emt 0:00:16]} 46. Kg5 {[%emt 0:00:11]} Rg2 {[%emt 0:00:01]} 47. Rf3 {[%emt 0:00:17]} Be2 {[%emt 0:00:08]} 48. Rf4 {[%emt 0:00:02]} Kd5 {[%emt 0:00:06]} 49. Bf2 {[%emt 0:00:14]} Kc6 {[%emt 0:00:12]} 50. c4 {[%emt 0:00:13]} Bd3 {[%emt 0:00:02]} 51. c5 {[%emt 0:00:10]} Be2 {[%emt 0:00:06]} 52. Bd4 {[%emt 0:00:27]} Kd5 {[%emt 0:00:01]} 53. Be3 {[%emt 0:00:03]} Kc6 {[%emt 0:00:03]} 54. Kxg6 {[%emt 0:00:37]} Bxg4 {[%emt 0:00:03]} 55. Rf6+ {[%emt 0:00:01]} Kd5 {[%emt 0:00:06]} 56. Rd6+ {[%emt 0:00:05]} Ke4 {[%emt 0:00:06]} 57. Bg5 {[%emt 0:00:03]} Bf5+ {[%emt 0:00:12]} 58. Kf6 {[%emt 0:00:05]} Rf2 {[%emt 0:00:04]} 59. Kg7 {[%emt 0:00:06]} Ke5 {[%emt 0:00:07]} 60. Rf6 {[%emt 0:00:09]} Rc2 {[%emt 0:00:03]} 61. c6 {[%emt 0:00:04]} Be4 {[%emt 0:00:03]} 62. c7 {[%emt 0:00:03]} Rxc7+ {[%emt 0:00:01]} 63. Rf7 {[%emt 0:00:27]} 1/2-1/2

[Event "FIDE Online Semi Final 2020"]
[Site "Online"]
[Date "2020.08.30"]
[Round "2.1"]
[White "Grischuk, Alexander"]
[Black "So, Wesley"]
[Result "1/2-1/2"]
[ECO "D37"]
[WhiteElo "2756"]
[BlackElo "2754"]
[Annotator "ChessBase"]
[PlyCount "45"]
[EventDate "2020.08.28"]
[EventType "k.o."]
[SourceTitle "playchess.com"]
[Source "ChessBase"]
[SourceQuality "1"]
[TimeControl "900+5"]

1. d4 {[%emt 0:00:08]} Nf6 {[%emt 0:00:03]} 2. c4 {[%emt 0:00:02]} e6 {[%emt 0:00:01]} 3. Nf3 {[%emt 0:00:06]} d5 {[%emt 0:00:02]} 4. Nc3 {[%emt 0:00:02]} Be7 {[%emt 0:00:01]} 5. Bf4 {[%emt 0:00:02]} O-O {[%emt 0:00:01]} 6. e3 {[%emt 0:00:02]} Nbd7 {[%emt 0:00:00]} 7. c5 {[%emt 0:00:15]} Nh5 {[%emt 0:00:06]} 8. Bd3 {[%emt 0:00:17]} Nxf4 {[%emt 0:00:03]} 9. exf4 {[%emt 0:00:01]} b6 {[%emt 0:00:00]} 10. b4 {[%emt 0:00:02]} a5 {[%emt 0:00:01]} 11. a3 {[%emt 0:00:01]} c6 {[%emt 0:00:01]} 12. O-O {[%emt 0:00:02]} Ba6 {[%emt 0:00:00]} 13. Ne2 {[%emt 0:00:40]} Qc7 {[%emt 0:00:49]} 14. g3 {[%emt 0:00:43]} Bf6 {[%emt 0:00:03]} 15. Rb1 {[%emt 0:00:14]} axb4 {[%emt 0:00:11]} 16. axb4 {[%emt 0:00:03]} Qb7 {[%emt 0:00:29]} 17. Nc1 {[%emt 0:01:58]} Bxd3 {[%emt 0:03:50]} 18. Nxd3 {[%emt 0:00:04]} Ra3 {[%emt 0:00:00]} 19. Qc2 {[%emt 0:02:10]} Rfa8 {[%emt 0:00:32]} 20. Rfc1 {[%emt 0:01:06]} b5 {[%emt 0:00:56]} 21. Kg2 {[%emt 0:00:19]} Nf8 {[%emt 0:00:09]} 22. Qd1 {[%emt 0:02:27]} Ng6 {[%emt 0:01:13]} 23. Ra1 {[%emt 0:00:21]} 1/2-1/2

[Event "FIDE Online Semi Final 2020"]
[Site "Online"]
[Date "2020.08.30"]
[Round "2.1"]
[White "Goryachkina, Aleksandra"]
[Black "Zatonskih, Anna"]
[Result "1-0"]
[ECO "D02"]
[WhiteElo "2621"]
[BlackElo "2376"]
[Annotator "ChessBase"]
[PlyCount "105"]
[EventDate "2020.08.28"]
[EventType "k.o."]
[SourceTitle "playchess.com"]
[Source "ChessBase"]
[SourceQuality "1"]
[TimeControl "900+5"]

1. d4 {[%emt 0:00:02]} d5 {[%emt 0:00:03]} 2. Bf4 {[%emt 0:00:19]} e6 {[%emt 0:01:20]} 3. e3 {[%emt 0:00:20]} Nf6 {[%emt 0:00:03]} 4. Nf3 {[%emt 0:00:14]} Bd6 {[%emt 0:00:03]} 5. Nbd2 {[%emt 0:00:09]} b6 {[%emt 0:02:16]} 6. c3 {[%emt 0:00:25]} O-O {[%emt 0:00:28]} 7. Ne5 {[%emt 0:00:50]} Ba6 {[%emt 0:03:27]} 8. Bxa6 {[%emt 0:00:09]} Nxa6 {[%emt 0:00:01]} 9. Qe2 {[%emt 0:00:10]} Nb8 {[%emt 0:00:11]} 10. h4 {[%emt 0:00:16]} c5 {[%emt 0:01:49]} 11. g4 {[%emt 0:00:29]} Qc7 {[%emt 0:00:08]} 12. g5 {[%emt 0:04:32]} Nfd7 {[%emt 0:00:03]} 13. Ndf3 {[%emt 0:02:14]} Nc6 {[%emt 0:00:14]} 14. Nxc6 {[%emt 0:01:36]} Qxc6 {[%emt 0:00:02]} 15. Bxd6 {[%emt 0:01:15]} Qxd6 {[%emt 0:00:03]} 16. h5 {[%emt 0:00:13]} e5 {[%emt 0:01:03]} 17. dxe5 {[%emt 0:00:27]} Nxe5 {[%emt 0:00:02]} 18. O-O-O {[%emt 0:00:07]} Rad8 {[%emt 0:00:24]} 19. Nxe5 {[%emt 0:00:56]} Qxe5 {[%emt 0:00:02]} 20. Qg4 {[%emt 0:00:12]} Qe6 {[%emt 0:02:58]} 21. Rh4 {[%emt 0:00:46]} f5 {[%emt 0:00:49]} 22. gxf6 {[%emt 0:00:17]} Qxf6 {[%emt 0:00:08]} 23. Rh2 {[%emt 0:00:09]} Rf7 {[%emt 0:00:10]} 24. Rg2 {[%emt 0:00:05]} b5 {[%emt 0:00:10]} 25. Qg5 {[%emt 0:00:26]} Qd6 {[%emt 0:00:36]} 26. h6 {[%emt 0:00:10]} g6 {[%emt 0:00:06]} 27. f4 {[%emt 0:00:04]} Re8 {[%emt 0:00:16]} 28. Qxd5 {[%emt 0:00:07]} Qxd5 {[%emt 0:00:06]} 29. Rxd5 {[%emt 0:00:00]} Rxe3 {[%emt 0:00:01]} 30. Rxc5 {[%emt 0:00:06]} a6 {[%emt 0:00:09]} 31. f5 {[%emt 0:00:02]} Rh3 {[%emt 0:00:06]} 32. Rc8+ {[%emt 0:00:11]} Rf8 {[%emt 0:00:02]} 33. Rxf8+ {[%emt 0:00:05]} Kxf8 {[%emt 0:00:00]} 34. fxg6 {[%emt 0:00:01]} Rxh6 {[%emt 0:00:07]} 35. gxh7 {[%emt 0:00:03]} Rxh7 {[%emt 0:00:02]} 36. Rg6 {[%emt 0:00:02]} a5 {[%emt 0:00:13]} 37. Rg5 {[%emt 0:00:03]} Rb7 {[%emt 0:00:07]} 38. a4 {[%emt 0:00:06]} b4 {[%emt 0:00:06]} 39. Rxa5 {[%emt 0:00:11]} bxc3 {[%emt 0:00:01]} 40. bxc3 {[%emt 0:00:01]} Ke7 {[%emt 0:00:05]} 41. Rd5 {[%emt 0:00:02]} Ke6 {[%emt 0:00:09]} 42. Rd4 {[%emt 0:00:05]} Ke5 {[%emt 0:00:07]} 43. Kc2 {[%emt 0:00:01]} Rb8 {[%emt 0:00:05]} 44. a5 {[%emt 0:00:15]} Ra8 {[%emt 0:00:02]} 45. Ra4 {[%emt 0:00:09]} Kd5 {[%emt 0:00:01]} 46. a6 {[%emt 0:00:07]} Kc6 {[%emt 0:00:04]} 47. a7 {[%emt 0:00:05]} Kb7 {[%emt 0:00:04]} 48. Kb3 {[%emt 0:00:01]} Rc8 {[%emt 0:00:06]} 49. a8=Q+ {[%emt 0:00:09]} Rxa8 {[%emt 0:00:03]} 50. Rxa8 {[%emt 0:00:00]} Kxa8 {[%emt 0:00:00]} 51. Kc4 {[%emt 0:00:01]} Kb7 {[%emt 0:00:01]} 52. Kb5 {[%emt 0:00:02]} Kc7 {[%emt 0:00:02]} 53. Kc5 {[%emt 0:00:00]} 1-0

[Event "FIDE Online Semi Final 2020"]
[Site "Online"]
[Date "2020.08.29"]
[Round "2.1"]
[White "Wang, Annie"]
[Black "Shuvalova, Polina"]
[Result "1-0"]
[ECO "D32"]
[WhiteElo "2306"]
[BlackElo "2293"]
[Annotator "NA"]
[PlyCount "121"]
[EventDate "2020.08.28"]
[EventType "k.o."]
[SourceTitle "playchess.com"]
[Source "ChessBase"]
[SourceQuality "1"]
[TimeControl "900+5"]

1. d4 {[%emt 0:00:01]} d5 {[%emt 0:00:01]} 2. c4 {[%emt 0:00:01]} e6 {[%emt 0:00:02]} 3. Nc3 {[%emt 0:00:02]} c5 {[%emt 0:00:01]} 4. cxd5 {[%emt 0:00:02]} exd5 {[%emt 0:00:00]} 5. Nf3 {[%emt 0:00:02]} Nc6 {[%emt 0:00:02]} 6. dxc5 {[%emt 0:00:04]} d4 {[%emt 0:01:11]} 7. Na4 {[%emt 0:00:02]} Bxc5 {[%emt 0:00:34]} 8. Nxc5 {[%emt 0:00:02]} Qa5+ {[%emt 0:00:01]} 9. Bd2 {[%emt 0:00:01]} Qxc5 {[%emt 0:00:00]} 10. Rc1 {[%emt 0:00:01]} Qb6 {[%emt 0:01:07]} 11. e3 {[%emt 0:00:03]} dxe3 {[%emt 0:00:21]} 12. Bxe3 {[%emt 0:00:08]} Qb4+ {[%emt 0:00:03]} 13. Bd2 {[%emt 0:00:25]} Qe7+ {[%emt 0:01:48]} 14. Be2 {[%emt 0:00:07]} Nf6 {[%emt 0:00:06]} 15. O-O {[%emt 0:00:05]} O-O {[%emt 0:00:03]} 16. Re1 {[%emt 0:00:44]} Bg4 {[%emt 0:02:42]} 17. Qa4 {[%emt 0:02:16]} Rad8 {[%emt 0:01:30]} 18. Bg5 {[%emt 0:00:56]} Be6 {[%emt 0:00:49]} 19. Bb5 {[%emt 0:00:55]} h6 {[%emt 0:00:25]} 20. Be3 {[%emt 0:00:28]} Rfe8 {[%emt 0:00:55]} 21. Nd4 {[%emt 0:03:13]} Bd5 {[%emt 0:02:01]} 22. Nxc6 {[%emt 0:00:42]} bxc6 {[%emt 0:00:02]} 23. Bxc6 {[%emt 0:00:05]} Bxc6 {[%emt 0:00:08]} 24. Qxc6 {[%emt 0:00:02]} Qb4 {[%emt 0:00:24]} 25. Qc3 {[%emt 0:00:59]} Qxc3 {[%emt 0:00:29]} 26. bxc3 {[%emt 0:01:41]} Nd5 {[%emt 0:01:06]} 27. Bd4 {[%emt 0:00:11]} Rxe1+ {[%emt 0:00:08]} 28. Rxe1 {[%emt 0:00:01]} Rc8 {[%emt 0:00:00]} 29. Kf1 {[%emt 0:00:21]} Rc4 {[%emt 0:00:15]} 30. Ke2 {[%emt 0:00:49]} Ra4 {[%emt 0:00:19]} 31. Ra1 {[%emt 0:00:04]} f6 {[%emt 0:00:03]} 32. g3 {[%emt 0:00:06]} Kf7 {[%emt 0:00:08]} 33. Kd3 {[%emt 0:00:01]} Ke6 {[%emt 0:00:13]} 34. Bc5 {[%emt 0:00:24]} Kd7 {[%emt 0:00:17]} 35. a3 {[%emt 0:00:18]} Nc7 {[%emt 0:00:06]} 36. c4 {[%emt 0:00:25]} Ne6 {[%emt 0:00:03]} 37. Bb4 {[%emt 0:00:21]} Kc6 {[%emt 0:00:17]} 38. Re1 {[%emt 0:01:02]} Kd7 {[%emt 0:00:05]} 39. Kc3 {[%emt 0:00:17]} Ra6 {[%emt 0:00:02]} 40. f4 {[%emt 0:00:10]} f5 {[%emt 0:00:15]} 41. Re5 {[%emt 0:00:05]} g6 {[%emt 0:00:03]} 42. c5 {[%emt 0:00:06]} Nc7 {[%emt 0:00:07]} 43. Kc4 {[%emt 0:00:16]} Rc6 {[%emt 0:00:05]} 44. Ba5 {[%emt 0:00:16]} Ne6 {[%emt 0:00:03]} 45. Rd5+ {[%emt 0:00:04]} Ke7 {[%emt 0:00:16]} 46. Kb5 {[%emt 0:00:13]} Rc8 {[%emt 0:00:02]} 47. Re5 {[%emt 0:00:07]} Kd7 {[%emt 0:00:10]} 48. Bb4 {[%emt 0:00:10]} Rb8+ {[%emt 0:00:05]} 49. Kc4 {[%emt 0:00:04]} Rc8 {[%emt 0:00:04]} 50. Kd5 {[%emt 0:00:02]} Nc7+ {[%emt 0:00:01]} 51. Kc4 {[%emt 0:00:03]} a6 {[%emt 0:00:04]} 52. Re3 {[%emt 0:00:09]} Ne6 {[%emt 0:00:01]} 53. Rd3+ {[%emt 0:00:01]} Ke7 {[%emt 0:00:07]} 54. c6+ {[%emt 0:00:08]} Kf7 {[%emt 0:00:07]} 55. Rd7+ {[%emt 0:00:01]} Ke8 {[%emt 0:00:05]} 56. Re7+ {[%emt 0:00:08]} Kd8 {[%emt 0:00:01]} 57. Rxe6 {[%emt 0:00:02]} Kc7 {[%emt 0:00:01]} 58. Rxg6 {[%emt 0:00:01]} Kb6 {[%emt 0:00:02]} 59. a4 {[%emt 0:00:01]} a5 {[%emt 0:00:01]} 60. Bc5+ {[%emt 0:00:01]} Kc7 {[%emt 0:00:01]} 61. Kd5 {[%emt 0:00:01]} 1-0

[Event "FIDE Online Semi Final 2020"]
[Site "Online"]
[Date "2020.08.29"]
[Round "2.1"]
[White "Abrahamyan, Tatev"]
[Black "Kosteniuk, Alexandra"]
[Result "0-1"]
[ECO "C50"]
[WhiteElo "2227"]
[BlackElo "2490"]
[Annotator "ChessBase"]
[PlyCount "64"]
[EventDate "2020.08.28"]
[EventType "k.o."]
[SourceTitle "playchess.com"]
[Source "ChessBase"]
[SourceQuality "1"]
[TimeControl "900+5"]

1. e4 {[%emt 0:00:03]} e5 {[%emt 0:00:02]} 2. Nf3 {[%emt 0:00:03]} Nc6 {[%emt 0:00:01]} 3. Bc4 {[%emt 0:00:02]} Bc5 {[%emt 0:00:02]} 4. O-O {[%emt 0:00:03]} Nf6 {[%emt 0:00:04]} 5. d3 {[%emt 0:00:01]} O-O {[%emt 0:00:06]} 6. Re1 {[%emt 0:00:08]} Ng4 {[%emt 0:00:03]} 7. Re2 {[%emt 0:00:24]} Kh8 {[%emt 0:00:12]} 8. h3 {[%emt 0:00:21]} f5 {[%emt 0:00:06]} 9. Bg5 {[%emt 0:00:02]} Nf6 {[%emt 0:00:10]} 10. Nc3 {[%emt 0:00:14]} d6 {[%emt 0:00:04]} 11. Nd5 {[%emt 0:02:10]} fxe4 {[%emt 0:00:14]} 12. dxe4 {[%emt 0:00:13]} Be6 {[%emt 0:00:03]} 13. Nxf6 {[%emt 0:02:37]} gxf6 {[%emt 0:00:03]} 14. Bxe6 {[%emt 0:00:03]} fxg5 {[%emt 0:00:01]} 15. Rd2 {[%emt 0:00:38]} Qf6 {[%emt 0:00:26]} 16. Bg4 {[%emt 0:00:21]} Ne7 {[%emt 0:00:22]} 17. Qe2 {[%emt 0:00:55]} Qg6 {[%emt 0:00:23]} 18. h4 {[%emt 0:04:22]} gxh4 {[%emt 0:02:39]} 19. Nxh4 {[%emt 0:00:05]} Bxf2+ {[%emt 0:00:06]} 20. Qxf2 {[%emt 0:00:08]} Qxg4 {[%emt 0:00:01]} 21. Qe1 {[%emt 0:00:18]} Rf4 {[%emt 0:00:10]} 22. g3 {[%emt 0:00:37]} Rxe4 {[%emt 0:02:03]} 23. Qf2 {[%emt 0:00:05]} Rf4 {[%emt 0:00:03]} 24. Qg2 {[%emt 0:00:08]} Rf7 {[%emt 0:00:34]} 25. Kh2 {[%emt 0:00:16]} Raf8 {[%emt 0:01:39]} 26. Qxb7 {[%emt 0:00:54]} Rf2+ {[%emt 0:00:04]} 27. Rxf2 {[%emt 0:00:02]} Rxf2+ {[%emt 0:00:00]} 28. Ng2 {[%emt 0:00:00]} Rf3 {[%emt 0:02:01]} 29. Qxc7 {[%emt 0:01:09]} Rxg3 {[%emt 0:00:55]} 30. Qb8+ {[%emt 0:00:43]} Ng8 {[%emt 0:00:13]} 31. Qb7 {[%emt 0:00:06]} Rh3+ {[%emt 0:00:01]} 32. Kg1 {[%emt 0:00:03]} Qd4+ {[%emt 0:00:02]} 0-1